[Event "Titled Tuesday Blitz November 29 Late 2022"]
[White "Salman, Pavel"]
[Black "Gatterer, Florian"]
[WhiteFideId "24153753"]
[BlackFideId "811688"]
[WhiteElo "2187"]
[BlackElo "2218"]
[Result "0-1"]
[Round "07"]
[TimeControl "180+1"]
[Date "2022.11.30"]
[WhiteClock "0:00:10"]
[BlackClock "0:00:18"]

1. Nf3 {[%clk 0:03:00]}  Nf6 {[%clk 0:02:57]} 2. g3 {[%clk 0:03:00]}  g6 {[%clk 0:02:54]} 3. Bg2 {[%clk 0:03:00]}  Bg7 {[%clk 0:02:54]} 4. O-O {[%clk 0:03:01]}  d5 {[%clk 0:02:54]} 5. d3 {[%clk 0:03:01]}  O-O {[%clk 0:02:54]} 6. Nbd2 {[%clk 0:03:02]}  Nc6 {[%clk 0:02:47]} 7. e4 {[%clk 0:03:02]}  dxe4 {[%clk 0:02:47]} 8. dxe4 {[%clk 0:03:03]}  Bg4 {[%clk 0:02:45]} 9. c3 {[%clk 0:03:02]}  Ne5 {[%clk 0:02:41]} 10. Qc2 {[%clk 0:02:59]}  Nxf3+ {[%clk 0:02:40]} 11. Nxf3 {[%clk 0:02:57]}  Nd7 {[%clk 0:02:30]} 12. h3 {[%clk 0:02:48]}  Bxf3 {[%clk 0:02:30]} 13. Bxf3 {[%clk 0:02:49]}  e5 {[%clk 0:02:30]} 14. Be3 {[%clk 0:02:47]}  Qe7 {[%clk 0:02:29]} 15. Rfd1 {[%clk 0:02:46]}  h5 {[%clk 0:02:10]} 16. b4 {[%clk 0:02:37]}  h4 {[%clk 0:02:06]} 17. Kg2 {[%clk 0:02:32]}  Bf6 {[%clk 0:02:05]} 18. Bg4 {[%clk 0:02:30]}  Rfd8 {[%clk 0:02:01]} 19. Rd2 {[%clk 0:02:25]}  Nf8 {[%clk 0:01:53]} 20. Rad1 {[%clk 0:02:24]}  Bg5 {[%clk 0:01:54]} 21. Rxd8 {[%clk 0:01:46]}  Rxd8 {[%clk 0:01:52]} 22. Rxd8 {[%clk 0:01:47]}  Qxd8 {[%clk 0:01:52]} 23. Qe2 {[%clk 0:01:42]}  hxg3 {[%clk 0:01:35]} 24. fxg3 {[%clk 0:01:42]}  Bxe3 {[%clk 0:01:35]} 25. Qxe3 {[%clk 0:01:43]}  b6 {[%clk 0:01:35]} 26. a4 {[%clk 0:01:41]}  Kg7 {[%clk 0:01:30]} 27. h4 {[%clk 0:01:40]}  Nh7 {[%clk 0:01:23]} 28. a5 {[%clk 0:01:31]}  Nf6 {[%clk 0:00:56]} 29. Be2 {[%clk 0:01:30]}  Qd6 {[%clk 0:00:56]} 30. axb6 {[%clk 0:01:23]}  axb6 {[%clk 0:00:55]} 31. h5 {[%clk 0:01:14]}  Qc6 {[%clk 0:00:49]} 32. h6+ {[%clk 0:01:11]}  Kh7 {[%clk 0:00:44]} 33. Bf3 {[%clk 0:01:09]}  Ng8 {[%clk 0:00:40]} 34. g4 {[%clk 0:00:58]}  Nxh6 {[%clk 0:00:36]} 35. g5 {[%clk 0:00:58]}  Ng8 {[%clk 0:00:35]} 36. Bg4 {[%clk 0:00:56]}  Kg7 {[%clk 0:00:29]} 37. Be2 {[%clk 0:00:46]}  Qd6 {[%clk 0:00:28]} 38. Bc4 {[%clk 0:00:43]}  Qe7 {[%clk 0:00:27]} 39. Kg3 {[%clk 0:00:41]}  f6 {[%clk 0:00:27]} 40. Bxg8 {[%clk 0:00:36]}  Kxg8 {[%clk 0:00:26]} 41. gxf6 {[%clk 0:00:37]}  Qxf6 {[%clk 0:00:25]} 42. Qh6 {[%clk 0:00:35]}  Qf4+ {[%clk 0:00:20]} 43. Qxf4 {[%clk 0:00:34]}  exf4+ {[%clk 0:00:21]} 44. Kxf4 {[%clk 0:00:35]}  Kf7 {[%clk 0:00:21]} 45. Kg5 {[%clk 0:00:31]}  b5 {[%clk 0:00:21]} 46. e5 {[%clk 0:00:26]}  c6 {[%clk 0:00:19]} 47. Kf4 {[%clk 0:00:08]}  Ke6 {[%clk 0:00:19]} 48. Ke4 {[%clk 0:00:08]}  g5 {[%clk 0:00:19]} 49. Kd4 {[%clk 0:00:09]}  g4 {[%clk 0:00:19]} 50. Kc5 {[%clk 0:00:06]}  g3 {[%clk 0:00:19]} 51. Kxc6 {[%clk 0:00:07]}  g2 {[%clk 0:00:19]} 52. Kxb5 {[%clk 0:00:07]}  g1=Q {[%clk 0:00:20]} 53. c4 {[%clk 0:00:08]}  Qa7 {[%clk 0:00:19]} 54. c5 {[%clk 0:00:09]}  Qb7+ {[%clk 0:00:19]} 55. Kc4 {[%clk 0:00:09]}  Kxe5 {[%clk 0:00:18]} 56. b5 {[%clk 0:00:10]}  Qe4+ {[%clk 0:00:18]} 57. Kb3 {[%clk 0:00:10]}  Kd5 {[%clk 0:00:18]} 0-1


[Site "https://www.chess.com"]

[Event "Titled Tuesday Blitz November 29 Late 2022"]
[White "Santos Flores, Alberto"]
[Black "Ibarra Jerez, Jose Carlos"]
[WhiteFideId "3601234"]
[BlackFideId "2226332"]
[WhiteElo "2235"]
[BlackElo "2638"]
[Result "0-1"]
[Round "07"]
[TimeControl "180+1"]
[Date "2022.11.30"]
[WhiteClock "0:00:05"]
[BlackClock "0:01:20"]

1. d4 {[%clk 0:02:56]}  Nf6 {[%clk 0:02:59]} 2. Nf3 {[%clk 0:02:52]}  g6 {[%clk 0:02:59]} 3. Bf4 {[%clk 0:02:49]}  d6 {[%clk 0:02:59]} 4. e3 {[%clk 0:02:46]}  Bg7 {[%clk 0:03:00]} 5. h3 {[%clk 0:02:46]}  O-O {[%clk 0:03:01]} 6. Nbd2 {[%clk 0:02:45]}  c5 {[%clk 0:03:01]} 7. c3 {[%clk 0:02:45]}  Be6 {[%clk 0:03:01]} 8. Be2 {[%clk 0:02:42]}  Qb6 {[%clk 0:03:01]} 9. Qc1 {[%clk 0:01:57]}  Nc6 {[%clk 0:02:58]} 10. O-O {[%clk 0:01:51]}  Rac8 {[%clk 0:02:57]} 11. a3 {[%clk 0:01:32]}  cxd4 {[%clk 0:02:54]} 12. exd4 {[%clk 0:01:31]}  Nd5 {[%clk 0:02:54]} 13. Bg3 {[%clk 0:01:28]}  Nxd4 {[%clk 0:02:53]} 14. Nxd4 {[%clk 0:01:20]}  Bxd4 {[%clk 0:02:52]} 15. Ne4 {[%clk 0:01:09]}  Bg7 {[%clk 0:02:44]} 16. Re1 {[%clk 0:01:07]}  h6 {[%clk 0:02:37]} 17. Qd2 {[%clk 0:00:57]}  f5 {[%clk 0:02:22]} 18. c4 {[%clk 0:00:36]}  Ne3 {[%clk 0:01:42]} 19. fxe3 {[%clk 0:00:27]}  fxe4 {[%clk 0:01:40]} 20. Rac1 {[%clk 0:00:23]}  Qxb2 {[%clk 0:01:35]} 21. Qxb2 {[%clk 0:00:21]}  Bxb2 {[%clk 0:01:35]} 22. Rb1 {[%clk 0:00:22]}  Bc3 {[%clk 0:01:31]} 23. Red1 {[%clk 0:00:18]}  b6 {[%clk 0:01:31]} 24. Rb3 {[%clk 0:00:08]}  Bxc4 {[%clk 0:01:21]} 25. Bxc4+ {[%clk 0:00:05]}  Rxc4 {[%clk 0:01:20]} 26. Rc1 {[%clk 0:00:05]}  Rfc8 {[%clk 0:01:20]} 0-1


[Site "https://www.chess.com"]

[Event "Titled Tuesday Blitz November 29 Late 2022"]
[White "Sariego Figueredo, Wilfredo"]
[Black "Gubajdullin, Alexei"]
[WhiteFideId "3500080"]
[BlackFideId "4141202"]
[WhiteElo "2309"]
[BlackElo "2230"]
[Result "0-1"]
[Round "07"]
[TimeControl "180+1"]
[Date "2022.11.30"]
[WhiteClock "0:00:03"]
[BlackClock "0:01:07"]

1. d4 {[%clk 0:02:59]}  d5 {[%clk 0:02:59]} 2. Bf4 {[%clk 0:02:58]}  Nf6 {[%clk 0:02:58]} 3. e3 {[%clk 0:02:55]}  Bf5 {[%clk 0:02:56]} 4. Bd3 {[%clk 0:02:55]}  e6 {[%clk 0:02:54]} 5. Nf3 {[%clk 0:02:52]}  Bd6 {[%clk 0:02:53]} 6. Bg3 {[%clk 0:02:50]}  O-O {[%clk 0:02:53]} 7. Bxf5 {[%clk 0:02:48]}  exf5 {[%clk 0:02:52]} 8. Nbd2 {[%clk 0:02:48]}  Ne4 {[%clk 0:02:51]} 9. c3 {[%clk 0:02:45]}  c6 {[%clk 0:02:50]} 10. O-O {[%clk 0:02:44]}  Nd7 {[%clk 0:02:49]} 11. Nxe4 {[%clk 0:02:41]}  fxe4 {[%clk 0:02:43]} 12. Bxd6 {[%clk 0:02:41]}  exf3 {[%clk 0:02:44]} 13. Bxf8 {[%clk 0:02:40]}  fxg2 {[%clk 0:02:44]} 14. Kxg2 {[%clk 0:02:41]}  Nxf8 {[%clk 0:02:42]} 15. Rg1 {[%clk 0:02:39]}  Ng6 {[%clk 0:02:42]} 16. Kf1 {[%clk 0:02:37]}  Qh4 {[%clk 0:02:41]} 17. Rg2 {[%clk 0:02:33]}  Re8 {[%clk 0:02:41]} 18. Qg4 {[%clk 0:02:28]}  Qf6 {[%clk 0:02:40]} 19. Rg3 {[%clk 0:02:15]}  h6 {[%clk 0:02:34]} 20. Rf3 {[%clk 0:02:07]}  Qe7 {[%clk 0:02:33]} 21. Ke2 {[%clk 0:01:56]}  a5 {[%clk 0:02:31]} 22. Rg1 {[%clk 0:01:54]}  a4 {[%clk 0:02:31]} 23. Rxf7 {[%clk 0:01:39]}  Qxf7 {[%clk 0:02:28]} 24. Qxg6 {[%clk 0:01:38]}  Qxg6 {[%clk 0:02:27]} 25. Rxg6 {[%clk 0:01:38]}  a3 {[%clk 0:02:23]} 26. b3 {[%clk 0:01:36]}  Re4 {[%clk 0:02:18]} 27. Kf3 {[%clk 0:01:32]}  Kf7 {[%clk 0:02:14]} 28. Rd6 {[%clk 0:01:31]}  Ke7 {[%clk 0:02:11]} 29. Rg6 {[%clk 0:01:31]}  Kf7 {[%clk 0:02:11]} 30. Rg1 {[%clk 0:01:31]}  g5 {[%clk 0:02:06]} 31. h3 {[%clk 0:01:28]}  Kf6 {[%clk 0:02:05]} 32. Rc1 {[%clk 0:01:26]}  Kf5 {[%clk 0:02:02]} 33. c4 {[%clk 0:01:22]}  Rh4 {[%clk 0:01:50]} 34. Kg3 {[%clk 0:01:20]}  Ke4 {[%clk 0:01:49]} 35. cxd5 {[%clk 0:01:16]}  cxd5 {[%clk 0:01:48]} 36. Rc7 {[%clk 0:01:13]}  Kd3 {[%clk 0:01:47]} 37. Rxb7 {[%clk 0:01:12]}  Kc3 {[%clk 0:01:46]} 38. Ra7 {[%clk 0:01:04]}  Kb2 {[%clk 0:01:45]} 39. b4 {[%clk 0:01:04]}  Kxa2 {[%clk 0:01:45]} 40. b5 {[%clk 0:01:04]}  Re4 {[%clk 0:01:40]} 41. b6 {[%clk 0:01:03]}  Re8 {[%clk 0:01:38]} 42. Rd7 {[%clk 0:00:55]}  Rb8 {[%clk 0:01:36]} 43. Rxd5 {[%clk 0:00:51]}  Rxb6 {[%clk 0:01:35]} 44. Ra5 {[%clk 0:00:48]}  Kb2 {[%clk 0:01:33]} 45. e4 {[%clk 0:00:48]}  a2 {[%clk 0:01:33]} 46. d5 {[%clk 0:00:47]}  Rb3+ {[%clk 0:01:33]} 47. Kg4 {[%clk 0:00:46]}  Ra3 {[%clk 0:01:33]} 48. Rb5+ {[%clk 0:00:46]}  Kc2 {[%clk 0:01:33]} 49. Rc5+ {[%clk 0:00:42]}  Kd2 {[%clk 0:01:33]} 50. d6 {[%clk 0:00:34]}  a1=Q {[%clk 0:01:32]} 51. d7 {[%clk 0:00:32]}  Qd1+ {[%clk 0:01:27]} 52. Kf5 {[%clk 0:00:23]}  Qf3+ {[%clk 0:01:19]} 53. Ke5 {[%clk 0:00:22]}  Rd3 {[%clk 0:01:16]} 54. Rd5 {[%clk 0:00:18]}  Rxd5+ {[%clk 0:01:15]} 55. Kxd5 {[%clk 0:00:14]}  Qf8 {[%clk 0:01:14]} 56. e5 {[%clk 0:00:11]}  Qe7 {[%clk 0:01:12]} 57. e6 {[%clk 0:00:11]}  Ke2 {[%clk 0:01:10]} 58. Kc6 {[%clk 0:00:02]}  Qxe6+ {[%clk 0:01:09]} 59. Kc7 {[%clk 0:00:03]}  Qe7 {[%clk 0:01:09]} 60. Kc8 {[%clk 0:00:03]}  Qc5+ {[%clk 0:01:09]} 61. Kb8 {[%clk 0:00:03]}  Qd6+ {[%clk 0:01:09]} 62. Kc8 {[%clk 0:00:04]}  Qc6+ {[%clk 0:01:09]} 63. Kd8 {[%clk 0:00:03]}  Kxf2 {[%clk 0:01:09]} 64. Ke7 {[%clk 0:00:03]}  Qe4+ {[%clk 0:01:07]} 65. Kf8 {[%clk 0:00:03]}  Qf5+ {[%clk 0:01:07]} 0-1


[Site "https://www.chess.com"]

[Event "Titled Tuesday Blitz November 29 Late 2022"]
[White "Steinberg, Nitzan"]
[Black "Naroditsky, Daniel"]
[WhiteFideId "2801795"]
[BlackFideId "2026961"]
[WhiteElo "2491"]
[BlackElo "2628"]
[Result "0-1"]
[Round "07"]
[TimeControl "180+1"]
[Date "2022.11.30"]
[WhiteClock "0:00:04"]
[BlackClock "0:00:05"]

1. e4 {[%clk 0:02:58]}  c6 {[%clk 0:03:00]} 2. Nf3 {[%clk 0:02:58]}  d5 {[%clk 0:03:00]} 3. Nc3 {[%clk 0:02:58]}  dxe4 {[%clk 0:03:01]} 4. Nxe4 {[%clk 0:02:59]}  Nf6 {[%clk 0:03:01]} 5. Qe2 {[%clk 0:02:59]}  Nxe4 {[%clk 0:03:02]} 6. Qxe4 {[%clk 0:03:00]}  Bd7 {[%clk 0:03:02]} 7. Bc4 {[%clk 0:02:56]}  e6 {[%clk 0:02:48]} 8. d4 {[%clk 0:02:55]}  c5 {[%clk 0:02:31]} 9. O-O {[%clk 0:02:47]}  Bc6 {[%clk 0:02:29]} 10. Qg4 {[%clk 0:02:30]}  Nd7 {[%clk 0:02:27]} 11. Bg5 {[%clk 0:02:19]}  Be7 {[%clk 0:02:18]} 12. d5 {[%clk 0:01:47]}  exd5 {[%clk 0:02:17]} 13. Rfe1 {[%clk 0:01:47]}  f6 {[%clk 0:02:17]} 14. Bf4 {[%clk 0:01:26]}  dxc4 {[%clk 0:01:27]} 15. Qxg7 {[%clk 0:01:26]}  Rf8 {[%clk 0:01:27]} 16. Nh4 {[%clk 0:01:12]}  Rf7 {[%clk 0:01:20]} 17. Qg8+ {[%clk 0:01:11]}  Nf8 {[%clk 0:00:57]} 18. Nf5 {[%clk 0:01:11]}  Qd5 {[%clk 0:00:58]} 19. Nd6+ {[%clk 0:01:09]}  Kd7 {[%clk 0:00:59]} 20. Rad1 {[%clk 0:00:56]}  Ng6 {[%clk 0:00:45]} 21. Qxg6 {[%clk 0:00:21]}  hxg6 {[%clk 0:00:40]} 22. Nxf7 {[%clk 0:00:21]}  Bf8 {[%clk 0:00:34]} 23. Rxd5+ {[%clk 0:00:12]}  Bxd5 {[%clk 0:00:35]} 24. Nh8 {[%clk 0:00:12]}  g5 {[%clk 0:00:27]} 25. Bg3 {[%clk 0:00:12]}  f5 {[%clk 0:00:25]} 26. h4 {[%clk 0:00:10]}  gxh4 {[%clk 0:00:17]} 27. Bxh4 {[%clk 0:00:08]}  Bd6 {[%clk 0:00:17]} 28. Ng6 {[%clk 0:00:08]}  Rg8 {[%clk 0:00:18]} 29. Ne5+ {[%clk 0:00:06]}  Kc7 {[%clk 0:00:13]} 30. f3 {[%clk 0:00:05]}  b5 {[%clk 0:00:11]} 31. Kf2 {[%clk 0:00:05]}  b4 {[%clk 0:00:09]} 32. Bg3 {[%clk 0:00:06]}  c3 {[%clk 0:00:07]} 33. b3 {[%clk 0:00:06]}  a5 {[%clk 0:00:08]} 34. Bf4 {[%clk 0:00:06]}  c4 {[%clk 0:00:05]} 35. bxc4 {[%clk 0:00:05]}  Bb7 {[%clk 0:00:05]} 36. c5 {[%clk 0:00:06]}  Bxc5+ {[%clk 0:00:06]} 37. Be3 {[%clk 0:00:03]}  Bd6 {[%clk 0:00:05]} 38. Bf4 {[%clk 0:00:04]}  Kc8 {[%clk 0:00:04]} 39. Rd1 {[%clk 0:00:04]}  Bc5+ {[%clk 0:00:05]} 40. Be3 {[%clk 0:00:04]}  Bxe3+ {[%clk 0:00:05]} 41. Kxe3 {[%clk 0:00:05]}  Rxg2 {[%clk 0:00:06]} 42. Nc4 {[%clk 0:00:05]}  Rxc2 {[%clk 0:00:05]} 43. Nxa5 {[%clk 0:00:05]}  Rxa2 {[%clk 0:00:05]} 44. Nc4 {[%clk 0:00:06]}  c2 {[%clk 0:00:05]} 45. Rc1 {[%clk 0:00:06]}  b3 {[%clk 0:00:05]} 46. Kd2 {[%clk 0:00:04]}  b2 {[%clk 0:00:04]} 47. Nxb2 {[%clk 0:00:04]}  Rxb2 {[%clk 0:00:05]} 48. Kc3 {[%clk 0:00:03]}  Ra2 {[%clk 0:00:05]} 49. f4 {[%clk 0:00:03]}  Be4 {[%clk 0:00:05]} 50. Kb3 {[%clk 0:00:04]}  Ra6 {[%clk 0:00:05]} 0-1


[Site "https://www.chess.com"]

[Event "Titled Tuesday Blitz November 29 Late 2022"]
[White "Tarnowska, Aleksandra"]
[Black "Qashashvili, Alexandre"]
[WhiteFideId "1180967"]
[BlackFideId "13600842"]
[WhiteElo "1776"]
[BlackElo "2405"]
[Result "0-1"]
[Round "07"]
[TimeControl "180+1"]
[Date "2022.11.30"]
[WhiteClock "0:00:02"]
[BlackClock "0:01:51"]

1. e4 {[%clk 0:03:00]}  c6 {[%clk 0:02:50]} 2. d4 {[%clk 0:03:00]}  d5 {[%clk 0:02:48]} 3. Nc3 {[%clk 0:03:01]}  dxe4 {[%clk 0:02:48]} 4. Nxe4 {[%clk 0:03:01]}  Nd7 {[%clk 0:02:47]} 5. Nf3 {[%clk 0:03:01]}  Ngf6 {[%clk 0:02:48]} 6. Nxf6+ {[%clk 0:03:01]}  Nxf6 {[%clk 0:02:48]} 7. Be3 {[%clk 0:02:56]}  Bg4 {[%clk 0:02:48]} 8. Be2 {[%clk 0:02:53]}  e6 {[%clk 0:02:48]} 9. h3 {[%clk 0:02:52]}  Bh5 {[%clk 0:02:47]} 10. O-O {[%clk 0:02:52]}  Bd6 {[%clk 0:02:46]} 11. c3 {[%clk 0:02:45]}  O-O {[%clk 0:02:45]} 12. Qc2 {[%clk 0:02:29]}  Bg6 {[%clk 0:02:42]} 13. Bd3 {[%clk 0:02:26]}  Bxd3 {[%clk 0:02:41]} 14. Qxd3 {[%clk 0:02:26]}  h6 {[%clk 0:02:41]} 15. Rad1 {[%clk 0:02:11]}  Nd5 {[%clk 0:02:41]} 16. Bc1 {[%clk 0:01:40]}  Bf4 {[%clk 0:02:39]} 17. Qe4 {[%clk 0:01:30]}  Bxc1 {[%clk 0:02:35]} 18. Rxc1 {[%clk 0:01:30]}  Qf6 {[%clk 0:02:33]} 19. Ne5 {[%clk 0:01:24]}  Qf4 {[%clk 0:02:32]} 20. Rfe1 {[%clk 0:01:10]}  Rad8 {[%clk 0:02:30]} 21. g3 {[%clk 0:00:51]}  Qxe4 {[%clk 0:02:28]} 22. Rxe4 {[%clk 0:00:52]}  Nf6 {[%clk 0:02:27]} 23. Re2 {[%clk 0:00:49]}  Nd7 {[%clk 0:02:28]} 24. f4 {[%clk 0:00:46]}  Nxe5 {[%clk 0:02:20]} 25. fxe5 {[%clk 0:00:45]}  Rd5 {[%clk 0:02:20]} 26. Rf1 {[%clk 0:00:38]}  c5 {[%clk 0:02:19]} 27. Re4 {[%clk 0:00:29]}  cxd4 {[%clk 0:02:14]} 28. cxd4 {[%clk 0:00:30]}  Rfd8 {[%clk 0:02:13]} 29. Ref4 {[%clk 0:00:27]}  R8d7 {[%clk 0:02:13]} 30. Rc1 {[%clk 0:00:06]}  g5 {[%clk 0:02:10]} 31. Re4 {[%clk 0:00:04]}  Rxd4 {[%clk 0:02:07]} 32. Rxd4 {[%clk 0:00:04]}  Rxd4 {[%clk 0:02:08]} 33. Rc8+ {[%clk 0:00:04]}  Kg7 {[%clk 0:02:08]} 34. Rc7 {[%clk 0:00:05]}  Rd1+ {[%clk 0:02:07]} 35. Kf2 {[%clk 0:00:03]}  Rd2+ {[%clk 0:02:08]} 36. Kf3 {[%clk 0:00:04]}  Rxb2 {[%clk 0:02:09]} 37. h4 {[%clk 0:00:03]}  gxh4 {[%clk 0:02:06]} 38. gxh4 {[%clk 0:00:03]}  a5 {[%clk 0:02:02]} 39. Rc4 {[%clk 0:00:03]}  Rxa2 {[%clk 0:01:59]} 40. Rg4+ {[%clk 0:00:03]}  Kf8 {[%clk 0:01:59]} 41. Rc4 {[%clk 0:00:03]}  Rb2 {[%clk 0:01:55]} 42. Kg4 {[%clk 0:00:03]}  b5 {[%clk 0:01:54]} 43. Rc7 {[%clk 0:00:02]}  Kg7 {[%clk 0:01:54]} 44. Kh5 {[%clk 0:00:02]}  a4 {[%clk 0:01:53]} 45. Rc8 {[%clk 0:00:02]}  a3 {[%clk 0:01:52]} 46. Rc3 {[%clk 0:00:02]}  b4 {[%clk 0:01:51]} 47. Rg3+ {[%clk 0:00:02]}  Kf8 {[%clk 0:01:52]} 48. Kxh6 {[%clk 0:00:03]}  a2 {[%clk 0:01:52]} 49. Rg1 {[%clk 0:00:02]}  Rb1 {[%clk 0:01:52]} 50. Rg2 {[%clk 0:00:02]}  a1=Q {[%clk 0:01:52]} 51. h5 {[%clk 0:00:02]}  Qxe5 {[%clk 0:01:51]} 52. Rg5 {[%clk 0:00:02]}  Qxg5+ {[%clk 0:01:51]} 53. Kxg5 {[%clk 0:00:02]}  Rh1 {[%clk 0:01:51]} 0-1


[Site "https://www.chess.com"]

[Event "Titled Tuesday Blitz November 29 Late 2022"]
[White "Tirelli, Mauro"]
[Black "Necromon"]
[WhiteFideId "845353"]
[WhiteElo "2166"]
[BlackElo "2485"]
[Result "1-0"]
[Round "07"]
[TimeControl "180+1"]
[Date "2022.11.30"]
[WhiteClock "0:01:31"]
[BlackClock "0:01:04"]

1. d4 {[%clk 0:03:00]}  c5 {[%clk 0:02:57]} 2. d5 {[%clk 0:02:59]}  Nf6 {[%clk 0:02:56]} 3. Nf3 {[%clk 0:02:58]}  g6 {[%clk 0:02:38]} 4. Nc3 {[%clk 0:02:45]}  Bg7 {[%clk 0:02:37]} 5. e4 {[%clk 0:02:44]}  d6 {[%clk 0:02:37]} 6. h3 {[%clk 0:02:44]}  O-O {[%clk 0:02:36]} 7. Be2 {[%clk 0:02:42]}  a6 {[%clk 0:02:37]} 8. a4 {[%clk 0:02:42]}  Nbd7 {[%clk 0:02:31]} 9. O-O {[%clk 0:02:40]}  Re8 {[%clk 0:02:27]} 10. Bf4 {[%clk 0:02:38]}  Rb8 {[%clk 0:02:21]} 11. a5 {[%clk 0:02:34]}  b5 {[%clk 0:02:21]} 12. axb6 {[%clk 0:02:34]}  Qxb6 {[%clk 0:02:18]} 13. Ra2 {[%clk 0:02:30]}  Nh5 {[%clk 0:02:12]} 14. Bd2 {[%clk 0:02:22]}  Ne5 {[%clk 0:01:57]} 15. Nxe5 {[%clk 0:02:22]}  Bxe5 {[%clk 0:01:57]} 16. Bxh5 {[%clk 0:02:22]}  gxh5 {[%clk 0:01:58]} 17. Qxh5 {[%clk 0:02:21]}  Qb4 {[%clk 0:01:44]} 18. f4 {[%clk 0:02:11]}  Bxc3 {[%clk 0:01:32]} 19. Bxc3 {[%clk 0:02:09]}  Qxe4 {[%clk 0:01:32]} 20. Rf3 {[%clk 0:02:04]}  Bf5 {[%clk 0:01:22]} 21. Qg5+ {[%clk 0:01:48]}  Bg6 {[%clk 0:01:20]} 22. f5 {[%clk 0:01:48]}  Qxd5 {[%clk 0:01:20]} 23. Qh6 {[%clk 0:01:34]}  f6 {[%clk 0:01:13]} 24. fxg6 {[%clk 0:01:33]}  hxg6 {[%clk 0:01:04]} 25. Qxg6+ {[%clk 0:01:31]} 1-0


[Site "https://www.chess.com"]

[Event "Titled Tuesday Blitz November 29 Late 2022"]
[White "Torres Dominguez, David"]
[Black "De Souza, Cristiano Gomes"]
[WhiteFideId "2220857"]
[BlackFideId "2151758"]
[WhiteElo "2037"]
[BlackElo "2068"]
[Result "0-1"]
[Round "07"]
[TimeControl "180+1"]
[Date "2022.11.30"]
[WhiteClock "0:00:09"]
[BlackClock "0:00:44"]

1. e4 {[%clk 0:03:00]}  c5 {[%clk 0:02:55]} 2. Nf3 {[%clk 0:02:59]}  d6 {[%clk 0:02:54]} 3. d4 {[%clk 0:02:59]}  cxd4 {[%clk 0:02:54]} 4. Nxd4 {[%clk 0:03:00]}  Nf6 {[%clk 0:02:54]} 5. Nc3 {[%clk 0:03:00]}  a6 {[%clk 0:02:53]} 6. f4 {[%clk 0:03:00]}  e5 {[%clk 0:02:49]} 7. Nf3 {[%clk 0:03:00]}  Nc6 {[%clk 0:02:47]} 8. fxe5 {[%clk 0:02:59]}  dxe5 {[%clk 0:02:46]} 9. Qxd8+ {[%clk 0:03:00]}  Kxd8 {[%clk 0:02:43]} 10. Bg5 {[%clk 0:03:00]}  Be7 {[%clk 0:02:42]} 11. O-O-O+ {[%clk 0:03:00]}  Ke8 {[%clk 0:02:40]} 12. Nd5 {[%clk 0:02:48]}  Nxd5 {[%clk 0:02:31]} 13. exd5 {[%clk 0:02:44]}  Bxg5+ {[%clk 0:02:30]} 14. Nxg5 {[%clk 0:02:42]}  Nd4 {[%clk 0:02:28]} 15. c3 {[%clk 0:02:34]}  Nf5 {[%clk 0:02:15]} 16. Bd3 {[%clk 0:02:26]}  Nd6 {[%clk 0:02:13]} 17. Rde1 {[%clk 0:02:20]}  f6 {[%clk 0:02:11]} 18. Nf3 {[%clk 0:01:57]}  Bg4 {[%clk 0:02:05]} 19. Rhf1 {[%clk 0:01:51]}  Bxf3 {[%clk 0:01:57]} 20. gxf3 {[%clk 0:01:46]}  Ke7 {[%clk 0:01:57]} 21. f4 {[%clk 0:01:45]}  Nf7 {[%clk 0:01:54]} 22. Be4 {[%clk 0:01:34]}  Kd6 {[%clk 0:01:51]} 23. fxe5+ {[%clk 0:01:30]}  Nxe5 {[%clk 0:01:50]} 24. Rg1 {[%clk 0:01:28]}  g6 {[%clk 0:01:48]} 25. Rd1 {[%clk 0:01:14]}  f5 {[%clk 0:01:44]} 26. Bc2 {[%clk 0:01:14]}  Rae8 {[%clk 0:01:42]} 27. b3 {[%clk 0:01:05]}  b5 {[%clk 0:01:34]} 28. Rg2 {[%clk 0:00:58]}  Ng4 {[%clk 0:01:30]} 29. Rdd2 {[%clk 0:00:50]}  Re1+ {[%clk 0:01:26]} 30. Kb2 {[%clk 0:00:49]}  Rhe8 {[%clk 0:01:23]} 31. Bd3 {[%clk 0:00:48]}  R8e3 {[%clk 0:01:16]} 32. c4 {[%clk 0:00:40]}  bxc4 {[%clk 0:01:12]} 33. Bxc4 {[%clk 0:00:38]}  Ne5 {[%clk 0:01:12]} 34. Rc2 {[%clk 0:00:34]}  f4 {[%clk 0:01:03]} 35. Rgf2 {[%clk 0:00:31]}  f3 {[%clk 0:00:59]} 36. a4 {[%clk 0:00:31]}  a5 {[%clk 0:00:57]} 37. b4 {[%clk 0:00:24]}  axb4 {[%clk 0:00:55]} 38. a5 {[%clk 0:00:24]}  Nxc4+ {[%clk 0:00:50]} 39. Rxc4 {[%clk 0:00:24]}  Kxd5 {[%clk 0:00:51]} 40. Rcc2 {[%clk 0:00:20]}  R1e2 {[%clk 0:00:51]} 41. Kb1 {[%clk 0:00:16]}  b3 {[%clk 0:00:47]} 42. Rb2 {[%clk 0:00:13]}  Rxb2+ {[%clk 0:00:44]} 43. Kxb2 {[%clk 0:00:12]}  Re2+ {[%clk 0:00:44]} 44. Kxb3 {[%clk 0:00:09]}  Rxf2 {[%clk 0:00:44]} 0-1


[Site "https://www.chess.com"]

[Event "Titled Tuesday Blitz November 29 Late 2022"]
[White "Tristan, Leonardo"]
[Black "D`Arruda, Ricardo D."]
[WhiteFideId "113816"]
[BlackFideId "100692"]
[WhiteElo "2461"]
[BlackElo "2460"]
[Result "1-0"]
[Round "07"]
[TimeControl "180+1"]
[Date "2022.11.30"]
[WhiteClock "0:00:20"]
[BlackClock "0:00:15"]

1. d4 {[%clk 0:03:00]}  Nf6 {[%clk 0:02:54]} 2. Nf3 {[%clk 0:03:01]}  d5 {[%clk 0:02:51]} 3. Bf4 {[%clk 0:03:01]}  c6 {[%clk 0:02:50]} 4. e3 {[%clk 0:03:01]}  g6 {[%clk 0:02:50]} 5. c4 {[%clk 0:02:59]}  Nbd7 {[%clk 0:02:49]} 6. Nc3 {[%clk 0:02:59]}  Bg7 {[%clk 0:02:49]} 7. h3 {[%clk 0:02:56]}  O-O {[%clk 0:02:49]} 8. Rc1 {[%clk 0:02:51]}  e6 {[%clk 0:02:47]} 9. Be2 {[%clk 0:02:45]}  b6 {[%clk 0:02:47]} 10. O-O {[%clk 0:02:41]}  Bb7 {[%clk 0:02:47]} 11. b4 {[%clk 0:02:39]}  Re8 {[%clk 0:02:42]} 12. b5 {[%clk 0:02:28]}  c5 {[%clk 0:02:37]} 13. dxc5 {[%clk 0:02:14]}  Nxc5 {[%clk 0:02:36]} 14. Ne5 {[%clk 0:02:15]}  Rc8 {[%clk 0:02:31]} 15. cxd5 {[%clk 0:02:02]}  Nxd5 {[%clk 0:02:30]} 16. Nxd5 {[%clk 0:02:01]}  Bxd5 {[%clk 0:02:30]} 17. Nc6 {[%clk 0:01:56]}  Qd7 {[%clk 0:02:19]} 18. Bf3 {[%clk 0:01:39]}  a6 {[%clk 0:01:45]} 19. a4 {[%clk 0:01:19]}  axb5 {[%clk 0:01:44]} 20. axb5 {[%clk 0:01:19]}  Bxf3 {[%clk 0:01:32]} 21. Qxd7 {[%clk 0:01:19]}  Nxd7 {[%clk 0:01:31]} 22. Ne7+ {[%clk 0:01:20]}  Kf8 {[%clk 0:01:13]} 23. Nxc8 {[%clk 0:01:09]}  e5 {[%clk 0:01:04]} 24. Nd6 {[%clk 0:00:48]}  Be2 {[%clk 0:00:57]} 25. Rfe1 {[%clk 0:00:35]}  Re6 {[%clk 0:00:47]} 26. Bg5 {[%clk 0:00:27]}  f6 {[%clk 0:00:35]} 27. Rxe2 {[%clk 0:00:23]}  Rxd6 {[%clk 0:00:34]} 28. Bh4 {[%clk 0:00:24]}  Nc5 {[%clk 0:00:27]} 29. e4 {[%clk 0:00:21]}  Bh6 {[%clk 0:00:21]} 30. Ra1 {[%clk 0:00:21]}  Rd7 {[%clk 0:00:15]} 31. Bxf6 {[%clk 0:00:20]} 1-0


[Site "https://www.chess.com"]